Cogmind - Beta 15 @@@ ROGUE MODE // 2025.08.05 @ 01:41:56 Player: OoferDoofums Result: Destroyed by H-55 Commando with Gauss Rifle Performance ------------- Evolutions (0) 0 Regions Visited (3) 600 Robots Destroyed (12) 60 Value Destroyed (541) 541 Prototype IDs (23) 460 Alien Tech Used (0) 0 Bonus (300) 300 TOTAL SCORE: 1961 Bonus ------- Aligned with FarCom 300 Cogmind --------- Core Integrity 0/250 Matter 280/300 Energy 80/125 System Corruption 1% Temperature Cool (0) Movement Walking (120) Location -10/Exiles Parts ------- > --- POWER (1) -------- Light Ion Engine > --- PROPULSION (2) --- Aluminum Leg Carbon-fiber Leg > --- UTILITY (2) ------ Small Storage Unit > --- WEAPON (2) ------- AWS/Thermal > --- INVENTORY (8) ---- Scrap Suit Salvaging Laser Light Assault Rifle Gauss Rifle Grenade Launcher Peak State ------------ > --- POWER ------------ Ion Engine > --- PROPULSION ------- Carbon-fiber Leg Carbon-fiber Leg > --- UTILITY ---------- Small Storage Unit > --- WEAPON ----------- AWS/Thermal > --- INVENTORY -------- Light Ion Engine Aluminum Leg Scrap Suit Salvaging Laser Light Assault Rifle Gauss Rifle Grenade Launcher [Rating: 25] Favorites ----------- Power Ion Engine Engine Ion Engine Propulsion Light Treads Treads Light Treads Leg Aluminum Leg Utility Small Storage Unit Storage Small Storage Unit Protection Light Armor Plating Weapon EM Pulse Gun Energy Gun EM Pulse Gun Launcher Grenade Launcher Build | -11 -10 -10 -10 ------- Run | Yrd Mat Min Exi Slots Evolved . | . . . . Power . | . . . . Propulsion . | . . . . Utility . | . . . . Weapon . | . . . . Parts Attached 14 | 7 . 2 5 Power 2 | 1 . . 1 Engine 2 | 1 . . 1 Core . | . . . . Reactor . | . . . . Propulsion 6 | 3 . . 3 Treads 2 | 2 . . . Leg 4 | 1 . . 3 Wheel . | . . . . Hover . | . . . . Flight . | . . . . Utility 2 | 1 . 1 . Device . | . . . . Storage 1 | 1 . . . Processor . | . . . . Hackware . | . . . . Protection 1 | . . 1 . Artifact . | . . . . Weapon 4 | 2 . 1 1 Energy Gun 3 | 2 . . 1 Energy Cannon . | . . . . Ballistic Gun . | . . . . Ballistic Cannon . | . . . . Launcher 1 | . . 1 . Special Weapon . | . . . . Impact Weapon . | . . . . Slashing Weapon . | . . . . Piercing Weapon . | . . . . Special Melee Weapon . | . . . . Unidentified Prototypes . | . . . . Parts Lost 3 | . . . 3 Power 1 | . . . 1 Propulsion 1 | . . . 1 Utility 1 | . . . 1 Weapon . | . . . . Highest Loss Streak 1 | . . . 1 To Critical Strikes . | . . . . Average Backups 5 | . 4 6 7 Power . | . . 1 1 Propulsion . | . 1 1 1 Utility . | . . . 1 Weapon 3 | . 2 4 4 Tool/Special . | . . . . Unused Backups 5 | . . . 5 Power . | . . . . Propulsion . | . . . . Utility 1 | . . . 1 Weapon 4 | . . . 4 Tool/Special . | . . . . Average Slot Usage (%) 89 | . 85 98 89 Engine 13 | . 14 14 12 Treads 13 | . 14 14 12 Leg 14 | . 14 14 15 Storage 14 | . 14 14 14 Protection 9 | . . 12 11 Energy Gun 17 | . 28 15 14 Launcher 6 | . . 12 7 Peak Build Rating 25 | 6 6 8 25 Average Rating 10 | 4 6 7 14 On Entrance 5 | . 6 6 8 Naked Turns . | . . . . Heaviest Build 21 | 14 14 18 21 Greatest Support 40 | 40 20 20 30 Greatest Overweight (x) 1 | 1 . . 1 Average Overweight (x) . | . . . . Largest Inventory Capacity 8 | 8 8 8 8 Average Capacity 7 | 7 8 8 8 Most Carried 8 | 1 6 8 8 Average Carried 6 | . 4 6 7 Final Capacity 8 | 8 8 8 8 Final Carried 8 | 1 6 8 6 Class Distribution -------------------- 100% | Mutant Dominant Class ---------------- Mutant | -10/Materials Mutant | -10/Mines Mutant | -10/Exiles Resources | -11 -10 -10 -10 ----------- Run | Yrd Mat Min Exi Matter Collected 305 | 270 . 20 15 Remotely . | . . . . Salvage Created 519 | . . . 519 Parts 33 | . . . 33 Haulers Intercepted . | . . . . Recyclers Shooed . | . . . . Parts Field Recycled . | . . . . Retrieved Matter . | . . . . Parts Self-Destructed . | . . . . Prevented . | . . . . Kills | -11 -10 -10 -10 ------- Run | Yrd Mat Min Exi Combat Hostiles Destroyed 12 | . . . 12 Guns 12 | . . . 12 Classes Destroyed 4 | . . . 4 Grunt 6 | . . . 6 Duelist 1 | . . . 1 Hunter 2 | . . . 2 Programmer 3 | . . . 3 Best Kill Streak 12 | . . . 12 Combat Bots Only 12 | . . . 12 Max Kills in Single Turn 1 | . . . 1 Gunslinging . | . . . . Exploded . | . . . . Melee . | . . . . Uniques/NPCs Destroyed . | . . . . Combat | -11 -10 -10 -10 -------- Run | Yrd Mat Min Exi Hostile Shots Fired 86 | . . . 86 Missed 35 | . . . 35 Hits 51 | . . . 51 Projectile 51 | . . . 51 Critical Strikes 1 | . . . 1 Damage Taken 820 | . . . 820 Core 267 | . . . 267 Absorbed by Shields . | . . . . Core Remaining (%) 100 | 100 . . . Volleys Fired . | . . . . Largest . | . . . . Hottest . | . . . . Shots Fired 54 | . . . 54 Gun 54 | . . . 54 Cannon . | . . . . Launcher . | . . . . Special . | . . . . Kinetic . | . . . . Thermal 54 | . . . 54 Explosive . | . . . . Electromagnetic . | . . . . Robot Hit Streak 10 | . . . 10 Robot Miss Streak 2 | . . . 2 Penetration Max . | . . . . Secondary Targets . | . . . . Autonomous 54 | . . . 54 Shots Hit Robots 40 | . . . 40 Core Hits 13 | . . . 13 Critical Kills . | . . . . Critical Parts Destroyed . | . . . . Critical Strikes . | . . . . Melee Attacks . | . . . . Impact . | . . . . Slashing . | . . . . Piercing . | . . . . Sneak Attacks . | . . . . Combat Hostiles . | . . . . Follow-up Attacks . | . . . . Damage Inflicted 1172 | . . . 1172 Guns 1172 | . . . 1172 Cannons . | . . . . Explosions . | . . . . Melee . | . . . . Ramming . | . . . . Kinetic . | . . . . Thermal 1172 | . . . 1172 Explosive . | . . . . Electromagnetic . | . . . . Impact . | . . . . Slashing . | . . . . Piercing . | . . . . Highest Corruption 1 | . . . 1 Average Corruption 1 | . . . 1 Corruption Purged . | . . . . Corruption Blocked . | . . . . Overload Shots . | . . . . Overflow Damage . | . . . . Projectiles . | . . . . Explosions . | . . . . Melee . | . . . . Knockbacks . | . . . . Impact . | . . . . Kinetic . | . . . . Secondary . | . . . . Self-Inflicted Damage . | . . . . Shots . | . . . . Rammed . | . . . . Targets Rammed . | . . . . Kicked . | . . . . Crushed . | . . . . Highest Temperature . | . . . . Average Temperature . | . . . . Received Heat Transfer 36 | . . . 36 Siege Activations . | . . . . Martial Activations . | . . . . Shielding Activations . | . . . . Robots Disrupted . | . . . . Combat Hostiles . | . . . . Robots Corrupted . | . . . . Combat Hostiles . | . . . . Parts Fried . | . . . . Impact Corruptions . | . . . . Robots Melted . | . . . . Combat Hostiles . | . . . . Parts Melted 2 | . . . 2 Heat Transferred 1480 | . . . 1480 Parts Sabotaged . | . . . . Parts Stolen . | . . . . Parts Stripped . | . . . . Power Chain Reactions . | . . . . Alert | -11 -10 -10 -10 ------- Run | Yrd Mat Min Exi Maximum Alert Level . | . . . . Low Security (%) 100 | 100 100 100 . Level 1 . | . . . . Level 2 . | . . . . Level 3 . | . . . . Level 4 . | . . . . Level 5 . | . . . . High Security . | . . . . Max Security . | . . . . Peak Influence 9 | . 9 . . Initial . | . . . . Average . | . . . . Influence Increases 264 | . 9 . 255 Destroy 0b10 Robot/C 240 | . . . 240 Successful Hack 9 | . 9 . . Lose Combat Pursuer 15 | . . . 15 Influence Decreases 87 | . 9 . 78 Time Decay 57 | . 9 . 48 Lost Part 30 | . . . 30 Squads Dispatched . | . . . . Investigation . | . . . . Extermination . | . . . . Reinforcement . | . . . . Assault . | . . . . Garrison . | . . . . Intercept . | . . . . Searches Triggered . | . . . . Construction Impeded . | . . . . Haulers Reinforced . | . . . . Active Scanning Responses . | . . . . Cargo Convoy Interrupts . | . . . . Stealth | -11 -10 -10 -10 --------- Run | Yrd Mat Min Exi Distress Signals 1 | . 1 . . Communications Jammed . | . . . . Distress Signals . | . . . . Times Spotted 23 | . 5 . 18 Peak Tracking Total 7 | . 3 . 7 Tactical Retreats 1 | . . . 1 Traps | -11 -10 -10 -10 ------- Run | Yrd Mat Min Exi Traps Triggered . | . . . . Indirectly . | . . . . Trap Hack Attempts . | . . . . Triggered . | . . . . Disarmed . | . . . . Reprogrammed . | . . . . Reused . | . . . . Traps Extracted . | . . . . Installed . | . . . . Triggered . | . . . . Machines | -11 -10 -10 -10 ---------- Run | Yrd Mat Min Exi Machines Disabled 2 | . . . 2 Max in Single Turn 1 | . . . 1 Machines Repaired . | . . . . Machines Dismantled . | . . . . Machines Sabotaged . | . . . . Overloaded Fab Kills . | . . . . Hacking | -11 -10 -10 -10 --------- Run | Yrd Mat Min Exi Machines Accessed 3 | . 2 . 1 Terminals 2 | . 2 . . Fabricators . | . . . . Repair Stations . | . . . . Recycling Units . | . . . . Scanalyzers . | . . . . Garrison Access . | . . . . Total Hacks 10 | . 9 . 1 Successful 4 | . 3 . 1 Failed 6 | . 6 . . Catastrophic 1 | . 1 . . Database Lockouts . | . . . . Manual 8 | . 7 . 1 Terminals 9 | . 9 . . Fabricators . | . . . . Repair Stations . | . . . . Recycling Units . | . . . . Scanalyzers . | . . . . Garrison Access . | . . . . Terminal Hacks 4 | . 3 . 1 Level Access Points 1 | . 1 . . Investigation Status 1 | . 1 . . Zone Layout 1 | . 1 . . Proto ID Catalog 1 | . . . 1 Fabricator Hacks . | . . . . Repair Station Hacks . | . . . . Recycling Unit Hacks . | . . . . Scanalyzer . | . . . . Garrison Access Hacks . | . . . . Unauthorized Hacks . | . . . . Terminals . | . . . . Fabricators . | . . . . Repair Stations . | . . . . Recycling Units . | . . . . Scanalyzers . | . . . . Garrison Access . | . . . . Data Cores Recovered . | . . . . Used . | . . . . Hacking Detections 2 | . 2 . . Full Trace Events . | . . . . Feedback Events . | . . . . Feedback Blocked . | . . . . Robot Schematics Acquired . | . . . . Robots Built . | . . . . Authchips . | . . . . Time . | . . . . Total Robot Build Rating . | . . . . Part Schematics Acquired . | . . . . Parts Built . | . . . . Authchips . | . . . . Time . | . . . . Total Part Build Rating . | . . . . Parts Repaired . | . . . . Time . | . . . . Parts Recycled . | . . . . Recycled Matter . | . . . . Retrieved Matter . | . . . . Retrieved Components . | . . . . Parts Scanalyzed . | . . . . Part Schematics Acquired . | . . . . Parts Damaged . | . . . . Bothacking | -11 -10 -10 -10 ------------ Run | Yrd Mat Min Exi Used RIF Installer . | . . . . Robots Hacked . | . . . . Non-combat . | . . . . Combat . | . . . . Robot Hacks Applied . | . . . . Relay Couplers Released . | . . . . Fabnet Peak Effective % . | . . . . Robots Rewired . | . . . . Allies Hacked . | . . . . Hacks Repelled . | . . . . Allies | -11 -10 -10 -10 -------- Run | Yrd Mat Min Exi Total Allies . | . . . . Largest Group . | . . . . Highest-Rated Group . | . . . . Highest-Rated Ally . | . . . . Total Orders . | . . . . Ally Attacks . | . . . . Total Damage . | . . . . Kills . | . . . . Allies Corrupted . | . . . . Allies Melted . | . . . . Intel | -11 -10 -10 -10 ------- Run | Yrd Mat Min Exi Active Infowar (turns) . | . . . . Robot Analysis Total . | . . . . Derelict Logs Recovered . | . . . . Drone Launches . | . . . . Drone Recoveries . | . . . . Exploration | -11 -10 -10 -10 ------------- Run | Yrd Mat Min Exi Turns Passed 1201 | 90 245 182 684 Spaces Moved 693 | 51 150 112 380 Core 3 | 3 . . . Treads 631 | 45 150 112 324 Legs 59 | 3 . . 56 Wheels . | . . . . Hover . | . . . . Flight . | . . . . Fastest Speed 50 | 50 160 160 120 Average Speed 166 | 155 160 160 172 Slowest Speed 240 | 190 160 160 240 Overloaded Moves . | . . . . Propulsion Burnouts . | . . . . Robots Hopped . | . . . . Potential Cave-ins . | . . . . Cave-ins Triggered . | . . . . Exploration Rate (%) 29 | 4 23 31 59 Regions Visited 3 Branch Regions 2 Pre-discovered Areas . | . . . . Known Exits Taken . | . . . . Unknown Exits Taken 3 | 1 1 1 . Scrap Searched 1 | . . 1 . Spaces Dug . | . . . . Terrain Destroyed 5 | . . . 5 Melee . | . . . . Projectile 5 | . . . 5 AOE . | . . . . Terrain Rammed . | . . . . Walls Destroyed . | . . . . Machines Disabled . | . . . . Actions | -11 -10 -10 -10 --------- Run | Yrd Mat Min Exi Total 740 | 59 155 114 412 Wait 21 | . 1 . 20 Move 690 | 50 149 111 380 Hop . | . . . . Pick Up 8 | 1 5 1 1 Fast Attach 10 | 7 . 1 2 Attach 2 | . . . 2 Detach 1 | . . . 1 Swap 2 | . . 1 1 Drop 6 | 1 . . 5 Fire . | . . . . Melee . | . . . . Ram . | . . . . Kick . | . . . . Crush . | . . . . Escape Stasis . | . . . . Rewire . | . . . . Trap . | . . . . Miscellaneous . | . . . . Route ------- -11/Scrapyard -10/Materials (discovered 4 exits: Mat x3 / [*Min]) -10/Mines (discovered 2 exits: *Mat / *Exi) -10/Exiles (discovered 1 exit: [*Min]) History --------- Turn | Location | Event 54 | -11/Scrapyard | Discovered new exit (range 16) 91 | -11/Scrapyard | Entered Materials 92 | -10/Materials | Met a group of wandering Federalists 264 | -10/Materials | Identified exit to Materials 301 | -10/Materials | Build established: Mutant 312 | -10/Materials | Discovered new exit (range 16) 336 | -10/Materials | Entered Mines 371 | -10/Mines | Discovered exit to Materials (range 10) 437 | -10/Mines | Found a Scrap Suit stashed away for nefarious purposes 440 | -10/Mines | Found Scrap Suit 512 | -10/Mines | Deemed a non-threat by the Exiles lab entrance 512 | -10/Mines | Discovered new exit (range 5) 518 | -10/Mines | Entered Exiles 541 | -10/Exiles | Discovered new exit (range 15) 563 | -10/Exiles | Met 8R-AWN 595 | -10/Exiles | Met EX-HEX 714 | -10/Exiles | Met EX-DEC 790 | -10/Exiles | Met EX-BIN 814 | -10/Exiles | Aligned with FarCom system 816 | -10/Exiles | Given EX-Vault access code 875 | -10/Exiles | Opened EX-Vault 888 | -10/Exiles | Found AWS/Thermal 937 | -10/Exiles | Warned to stay clear of 0b10 Research branches 970 | -10/Exiles | Exiles lab attacked by MAIN.C 1142 | -10/Exiles | Core integrity fell below 50% 1164 | -10/Exiles | Core integrity fell below 20% 1166 | -10/Exiles | Destroyed 12 combat bots 1202 | -10/Exiles | Destroyed by H-55 Commando with Gauss Rifle Last Messages --------------- Destroyed Melee Analysis Suite. The unstable cave ceiling collapses. Dropped Lgt. Treads. Acquired Carbon-fiber Leg. L-31 Rogue destroyed. Penetrated by Slug. G-34 Mercenary destroyed. Penetrated by Slug. Ion Engine destroyed. Penetrated by Slug. Assembled Analyzer disabled. Slug penetrates Wall. Penetrated by Slug. G-34 Mercenary destroyed. Machine disabled. Carbon-fiber Leg destroyed. Machine disabled. Penetrated by Slug. Slug penetrates Machine. P-60 Hacker knocked back. Map ----- +----------------------------------------------------+ | ?????????????????????????????????????????#" | | ?????????????????????????????????????????## | | ??????????????????????????????????????????# | | ??????????????????????????????????????????#" | | ??????????????????????????????????????????#" | | ??????????????????????????????????????????#" " | | ????????????????????????????? ??????????##" ## | | ????????????????????????????# ?????????##"" #? | | ???????????????????????????## ????######"" #? | | ??????????????????????#####X# #"###""""""" ## | | ????????????????????? """""" " "" # | | ???????????????????? "" """ " | | ??????????????????? " " | | ??????????????????? | | ?????????????????? | | ??????????????????? | | ???????????????????# p | | ????????????????????#" h | | ????????????????????#""" [ """"" | | ???????????????????##" ######""" | | ???????????????????#"" ""##????#####" | | ??????????????????##"" """##?????????## | | ??????????????????#""" """##???????????# | | ??????????????????#" t ""#???????????## | | ??????????????????#"" ########??####" | | ??????????????????#""" @ ## ####""" | | ??????????????????#"" """" | | ??????????????????##"" | | ???????????????????#""" | | ???????????????????## | | ????????????????????#" " "" | | ????????????????????#"""" ""## ##"" | | ????????????????????#"" ""#### #### | | ????????????????????#" """"##??# #??? | | ?????????????????????""" """#??## #### | | ?????????????????????# ""##??#! "!# | | ???????????????????????" """##???#" !# | | ??????????????????????#""" #?????#" "# | | ???????????????????????#"""" #??????#!!""!"# | | ?????????????????????????? ???????######## | | ??????????????????????????#### ???????????????? | | ?????????????????????????????## ???????????????? | | ??????????????????????????????? ????????????????? | | ?????????????????????????????????????????????????? | | ?????????????????????????????????????????????????? | | ?????????????????????????????????????????????????? | | ?????????????????????????????????????????????????? | | ?????????????????????????????????????????????????? | | ?????????????????????????????????????????????????? | | ?????????????????????????????????????????????????? | +----------------------------------------------------+ Best States ------------- Heat Dissipation 25 Energy Generation 10 Energy Capacity 250 Matter Stores 300 Matter Capacity 300 Sight Range 16 Terrain Scan Density 10 Armor Coverage 150 Evasion (%) 55 Recoil Reduction 2 Item Schematics ----------------- None Robot Schematics ------------------ None Fabricated ------------ Nothing Repaired ---------- Nothing Alien Tech Used ----------------- None Achievements -------------- None Challenges ------------ None Game ------ Seed MediumBehemothExtrapolator Manual? 0 Play Time 00:17:10 Cumulative 31.2 hours Start 2025.08.05 @ 01:23:16 End 2025.08.05 @ 01:41:56 Sessions 1 Manual Loads 0 Difficulty Rogue Special Mode None Game No. 59 Rogue 59 Adventurer 0 Explorer 0 Win Type - Total 0 Types 0/0/0/0/0/0/0/0/0/0 Lore% 24 Gallery% 25 Achievement% 22 Wizard Run 0 Options --------- Layout 1 ASCII 0 Keyboard 0 Movement Mouse Keybinds 0 Fullscreen 1 Font 24/Smallcaps Map View 50x35 Zoom Use 0% Tactical HUD 0 Map Filters NONE Filters NONE Steam 1 RUN: ae4d5ff9-8d65-4214-bfdb-12ed65c2ffd0